bitfinex/quotes_SOLUSD_20260304
["timestamp","ask_amount","ask_price","bid_price","bid_amount"]
[1772666454385,0.4748997,90.717,90.609,0.4608216]
[1772666454994,0.4748997,90.717,90.623,0.4608216]
[1772666455288,0.4748997,90.717,90.659,0.28432314]
[1772666455485,0.4748997,90.717,90.666,0.4608216]
[1772666456491,0.4748997,90.717,90.668,0.4608216]
[1772666457187,0.4748997,90.699,90.654,11.03095285]
[1772666457361,0.4748997,90.698,90.654,38.60833498]
[1772666458084,0.4748997,90.698,90.654,11.03095285]
[1772666458266,8.95629946,90.7,90.654,11.03095285]
[1772666458267,0.4748997,90.689,90.654,11.03095285]
[1772666458461,0.4748997,90.687,90.636,0.4608216]
[1772666458686,0.4748997,90.685,90.641,27.58118614]
[1772666459068,0.4748997,90.683,90.641,27.58118614]
[1772666460390,0.4748997,90.669,90.635,11.03326529]
[1772666460689,0.4748997,90.669,90.617,0.4608216]
[1772666461575,30.0,90.667,90.617,0.4608216]
[1772666461789,27.56704304,90.688,90.612,93.80655982]
[1772666461790,11.50125634,90.692,90.627,0.4608216]
[1772666462085,0.4748997,90.705,90.641,0.4608216]
[1772666462265,0.4748997,90.705,90.647,0.4608216]
[1772666462687,0.4748997,90.705,90.649,0.4608216]
[1772666462872,1.37789633,90.718,90.652,0.28432314]
[1772666462873,0.4748997,90.716,90.652,0.28432314]
[1772666463077,0.4748997,90.716,90.667,0.4608216]
[1772666464690,0.2,90.79,90.667,0.4608216]
[1772666464691,0.4748997,90.726,90.667,0.4608216]
[1772666464886,0.4748997,90.726,90.669,0.4608216]
[1772666465683,0.4748997,90.726,90.668,38.60237348]
[1772666465684,0.4748997,90.726,90.677,0.4608216]
[1772666465889,0.4748997,90.726,90.668,82.71937175]
[1772666465890,0.4748997,90.734,90.679,0.4608216]
[1772666466068,8.95629946,90.73,90.679,0.4608216]
[1772666466272,1.37772928,90.729,90.679,0.4608216]
[1772666466471,1.37772928,90.729,90.671,3.69383402]
[1772666466671,1.37772928,90.729,90.669,0.4608216]
[1772666467285,11.02195573,90.728,90.673,3.69383402]
[1772666467591,1.37775965,90.727,90.674,0.4608216]
[1772666467966,0.4748997,90.726,90.674,0.4608216]
[1772666468170,0.4748997,90.724,90.674,0.4608216]
[1772666468495,0.4748997,90.724,90.676,0.4608216]
[1772666469213,0.4748997,90.724,90.673,3.69383402]
[1772666469394,0.4748997,90.717,90.67,27.57251571]
[1772666469585,0.4748997,90.717,90.664,11.02973616]
[1772666469586,0.4748997,90.709,90.664,11.02973616]
[1772666469789,0.4748997,90.709,90.677,0.83647451]
[1772666470372,1.37804824,90.708,90.677,0.83647451]
[1772666470573,0.4748997,90.707,90.677,0.83647451]
[1772666470772,0.4748997,90.705,90.677,0.83647451]
[1772666471067,0.4748997,90.703,90.677,0.83647451]
[1772666471373,44.0815097,90.741,90.677,0.83647451]
[1772666471374,27.55393739,90.732,90.68,0.4608216]
[1772666471580,12.3992902,90.731,90.68,0.4608216]
[1772666471989,8.95629946,90.72,90.679,11.02791164]
[1772666472183,8.95629946,90.71,90.679,11.02791164]
[1772666472387,10.33401355,90.73,90.679,38.59769075]
[1772666472583,1.37771409,90.73,90.68,0.4608216]
[1772666473189,8.95629946,90.76,90.686,0.4608216]
[1772666473490,0.4748997,90.757,90.688,0.4608216]
[1772666473792,38.56409351,90.758,90.688,0.4608216]
[1772666473793,0.4748997,90.749,90.688,0.4608216]
[1772666474092,0.4748997,90.729,90.681,11.02759421]
[1772666474298,0.28432314,90.746,90.682,0.4608216]
[1772666474299,0.4748997,90.727,90.682,0.4608216]
[1772666474487,0.4748997,90.737,90.684,0.4608216]
[1772666474689,1.37750154,90.744,90.686,0.4608216]
[1772666474886,0.4748997,90.743,90.686,0.4608216]
[1772666475598,0.4748997,90.743,90.688,0.4608216]
[1772666476476,0.4748997,90.753,90.688,0.4608216]
[1772666476676,0.4748997,90.751,90.688,0.4608216]
[1772666476889,0.4748997,90.749,90.688,0.4608216]
[1772666477094,0.4748997,90.747,90.688,0.4608216]
[1772666477293,1.37747118,90.746,90.688,0.4608216]
[1772666477476,11.0198909,90.745,90.689,38.5934347]
[1772666477677,0.4748997,90.744,90.69,0.4608216]
[1772666478076,0.4748997,90.754,90.696,0.4608216]
[1772666479304,27.85465352,90.774,90.716,0.47861032]
[1772666479608,0.46903642,90.784,90.722,0.47861032]
[1772666479895,0.2,90.79,90.744,0.47861032]
[1772666480096,0.46903642,90.788,90.746,0.47861032]
[1772666480293,1.37681877,90.789,90.72,3.69383402]
[1772666480294,0.46903642,90.786,90.726,0.47861032]
[1772666480472,0.46903642,90.784,90.726,0.47861032]
[1772666480677,0.46903642,90.759,90.718,0.47861032]
[1772666481101,1.37683394,90.788,90.718,0.47861032]
[1772666481405,8.95629946,90.77,90.718,0.47861032]
[1772666481719,8.95629946,90.76,90.718,0.47861032]
[1772666482001,11.01795005,90.761,90.72,0.47861032]
[1772666482300,0.46903642,90.762,90.719,38.50721179]
[1772666482613,0.46903642,90.763,90.719,38.50721179]
[1772666483993,0.46903642,90.763,90.707,44.09797458]
[1772666483994,1.37712214,90.769,90.711,0.28432314]
[1772666484304,0.46903642,90.775,90.716,0.47861032]
[1772666485584,0.46903642,90.785,90.724,0.47861032]
[1772666485788,0.46903642,90.785,90.726,0.47861032]
[1772666486094,1.57680361,90.79,90.732,0.46683457]
[1772666486298,1.57680361,90.79,90.731,0.28432314]
[1772666486299,0.2,90.79,90.736,0.46683457]
[1772666487307,0.47065851,90.779,90.736,0.46683457]
[1772666488319,44.02539119,90.857,90.743,0.28432314]
[1772666488320,19.96831553,90.81,90.743,0.28432314]
[1772666488493,19.96831553,90.81,90.746,0.46683457]
[1772666489805,8.95629946,90.8,90.746,0.46683457]
[1772666490317,0.45945783,90.799,90.748,0.46683457]
[1772666490907,0.45945783,90.809,90.748,0.46683457]
[1772666492315,0.45945783,90.807,90.75,0.46683457]
[1772666494617,0.45945783,90.805,90.752,0.46683457]
[1772666496530,0.45945783,90.805,90.754,0.46683457]
[1772666497300,8.98626625,90.76,90.709,0.46683457]
[1772666497522,0.45945783,90.759,90.709,0.46683457]
[1772666498502,0.45945783,90.759,90.711,0.46683457]
[1772666499521,0.45945783,90.757,90.701,0.46683457]
[1772666499832,0.45945783,90.729,90.679,0.46683457]
[1772666500725,0.45945783,90.729,90.678,38.59811641]
[1772666500726,0.45945783,90.729,90.681,0.46683457]
[1772666501502,0.45945783,90.728,90.681,0.46683457]
[1772666503506,0.45945783,90.728,90.683,0.46683457]
[1772666503907,0.45945783,90.739,90.683,0.46683457]
[1772666505167,0.45945783,90.728,90.652,0.46683457]
[1772666505435,170.80078017,90.749,90.65,5.74283056]
[1772666505436,8.98626625,90.71,90.677,0.37701668]
[1772666505634,11.0242644,90.709,90.677,0.37701668]
[1772666505835,38.58492541,90.709,90.677,0.37701668]
[1772666506005,8.98626625,90.69,90.677,1e-08]
[1772666506406,8.98626625,90.7,90.677,1e-08]
[1772666506606,8.98626625,90.69,90.677,1e-08]
[1772666506927,30.0,90.689,90.677,1e-08]
[1772666507810,13.9,90.68,90.677,1e-08]
[1772666508634,5.77583715,90.68,90.677,1e-08]
[1772666508834,30.0,90.689,90.677,1e-08]
[1772666509024,41.02676758,90.689,90.677,1e-08]
[1772666509220,30.0,90.689,90.677,1e-08]
[1772666509419,11.02608367,90.695,90.677,1e-08]
[1772666509731,27.56110642,90.708,90.677,1e-08]
[1772666509931,11.0242644,90.709,90.677,1e-08]
[1772666510134,11.0242644,90.709,90.677,0.50000001]
[1772666510829,11.02304919,90.719,90.677,0.50000001]
[1772666512229,8.98626625,90.74,90.679,0.5]
[1772666513132,38.56579323,90.754,90.679,0.5]
[1772666513333,8.98626625,90.75,90.679,0.5]
[1772666513716,0.28432314,90.749,90.679,0.5]
[1772666514532,38.5679181,90.749,90.681,0.5]
[1772666516432,38.5679181,90.749,90.683,0.5]
[1772666517429,27.54851293,90.749,90.685,0.5]
[1772666521318,27.54851293,90.749,90.687,0.5]
[1772666521754,8.98626625,90.74,90.687,0.5]
[1772666523140,8.98626625,90.73,90.687,0.5]
[1772666523327,8.98626625,90.74,90.688,11.02681721]
[1772666524823,38.57216851,90.739,90.688,11.02681721]
[1772666525138,8.98626625,90.73,90.688,11.52681721]
[1772666526546,38.57216851,90.739,90.689,0.5]
[1772666527542,38.57216851,90.739,90.691,0.5]
[1772666527735,11.02061957,90.739,90.691,0.5]
[1772666530351,11.02061957,90.739,90.69,38.59300914]
[1772666530352,8.98626625,90.75,90.693,0.5]
[1772666531942,38.56579323,90.754,90.693,0.5]
[1772666532347,38.5679181,90.749,90.695,0.5]
[1772666533230,8.98626625,90.74,90.69,11.02650793]
[1772666533429,8.98626625,90.72,90.679,11.02791164]
[1772666533651,8.98626625,90.73,90.679,11.52791164]
[1772666533951,8.98626625,90.73,90.68,0.5]
[1772666534866,6.86971639,90.775,90.624,0.5]
[1772666534867,8.98626625,90.69,90.624,0.5]
[1772666535145,8.98626625,90.68,90.624,0.5]
[1772666535450,8.98626625,90.67,90.624,0.5]
[1772666535951,8.98626625,90.68,90.624,0.5]
[1772666536452,30.0,90.669,90.624,0.5]
[1772666536945,11.02924956,90.668,90.626,0.5]
[1772666537248,30.0,90.665,90.626,0.5]
[1772666539152,30.0,90.665,90.628,0.5]
[1772666540133,11.02855131,90.674,90.628,0.5]
[1772666540454,11.02681721,90.688,90.628,0.5]
[1772666540653,11.02681721,90.688,90.634,0.5]
[1772666541037,8.98626625,90.72,90.636,0.5]
[1772666541356,38.57897114,90.723,90.636,0.5]
[1772666542440,8.98626625,90.72,90.636,0.5]
[1772666542635,8.98626625,90.71,90.636,0.5]
[1772666543248,8.98626625,90.71,90.638,0.5]
[1772666544854,9.27058939,90.72,90.64,0.5]
[1772666545235,11.02280618,90.721,90.642,0.5]
[1772666545436,11.02280618,90.721,90.646,0.5]
[1772666546742,38.57982164,90.721,90.646,0.5]
[1772666547054,11.02280618,90.721,90.655,0.28432314]
[1772666547259,11.02280618,90.721,90.656,0.5]
[1772666547756,38.57982164,90.721,90.656,0.5]
[1772666547940,11.02280618,90.721,90.656,0.5]
[1772666548943,11.02280618,90.721,90.658,0.5]
[1772666550860,8.98626625,90.72,90.658,0.5]
[1772666551165,11.02304919,90.719,90.66,0.5]
[1772666551798,6.74230077,90.724,90.663,0.14216157]
[1772666552057,27.55368846,90.732,90.664,0.5]
[1772666552861,8.99844707,90.72,90.664,0.5]
[1772666553046,38.58067217,90.719,90.666,0.5]
[1772666555058,38.57641988,90.729,90.668,0.5]
[1772666555251,0.28432314,90.728,90.668,0.5]
[1772666555963,38.57641988,90.729,90.668,0.5]
[1772666556351,8.99844707,90.72,90.668,0.5]
[1772666556663,8.99844707,90.71,90.668,0.5]
[1772666556845,0.28432314,90.728,90.668,0.5]
[1772666556846,8.99844707,90.72,90.668,0.5]
[1772666557246,38.58067217,90.719,90.67,0.5]
[1772666559560,27.55762298,90.719,90.671,11.02888464]
[1772666560167,27.55762298,90.719,90.672,0.5]
[1772666561972,11.02207722,90.727,90.674,0.5]
[1772666563050,11.02151494,90.732,90.674,0.5]
[1772666563865,11.02151494,90.732,90.676,0.5]
[1772666568177,11.02151494,90.732,90.678,0.5]
[1772666569070,8.99844707,90.76,90.683,0.28432314]
[1772666569252,27.54590157,90.758,90.684,0.5]
[1772666570253,27.54590157,90.758,90.685,38.595137]
[1772666570481,8.99844707,90.75,90.686,0.5]
[1772666570677,8.99844707,90.74,90.686,0.5]
[1772666570858,8.99844707,90.73,90.686,0.5]
[1772666571877,11.02183425,90.729,90.688,0.5]
[1772666572064,38.57641988,90.729,90.688,0.5]
[1772666572857,11.02183425,90.729,90.688,0.5]
[1772666573976,38.5724456,90.739,90.69,0.5]
[1772666574174,8.99844707,90.73,90.688,11.0267241]
[1772666574475,38.5724456,90.739,90.689,0.5]
[1772666575986,0.28432314,90.748,90.691,0.5]
[1772666576178,11.01940517,90.749,90.691,0.5]
[1772666577872,38.56366861,90.759,90.693,0.5]
[1772666578270,8.99844707,90.75,90.693,0.5]
[1772666579978,38.5679181,90.749,90.695,0.5]
[1772666581594,44.04910975,90.808,90.704,0.5]
[1772666581595,11.01697716,90.769,90.704,0.5]
[1772666583480,27.5409666,90.774,90.706,0.5]
[1772666583990,11.01576355,90.779,90.706,0.5]
[1772666585290,11.01406496,90.793,90.714,0.5]
[1772666585494,11.01406496,90.793,90.724,0.5]
[1772666585688,27.53493883,90.794,90.726,0.5]
[1772666588295,27.53493883,90.794,90.728,0.5]
[1772666590092,8.99844707,90.79,90.728,0.5]
[1772666590391,0.28432314,90.793,90.73,0.5]
[1772666590392,11.01576355,90.779,90.73,0.5]
[1772666591880,27.53882286,90.781,90.732,0.5]
[1772666596598,11.01455022,90.789,90.734,0.5]
[1772666598803,38.55092577,90.789,90.736,0.5]
[1772666601584,38.55092577,90.789,90.738,0.5]
[1772666604690,38.55092577,90.789,90.74,0.5]
[1772666605685,11.01455022,90.789,90.74,0.5]
[1772666607786,4.19459481,90.8,90.742,0.5]
[1772666607988,0.28432314,90.809,90.742,0.5]
[1772666609425,42.73660559,90.81,90.744,0.5]
[1772666609596,11.01200308,90.81,90.744,0.5]
[1772666609912,15.20659789,90.81,90.744,0.5]
[1772666611108,11.01200308,90.81,90.744,0.5]
[1772666611484,27.52937887,90.813,90.746,0.5]
[1772666612412,11.01091181,90.819,90.746,0.5]
[1772666612612,0.2,90.82,90.764,0.5]
[1772666613517,11.01091181,90.819,90.766,0.5]
[1772666613690,4.19459481,90.81,90.766,0.5]
[1772666614087,11.00848754,90.839,90.773,0.5]
[1772666614310,4.19459481,90.83,90.773,0.5]
[1772666614511,38.52970639,90.839,90.773,0.5]
[1772666615218,38.52970639,90.839,90.73,16.17912431]
[1772666615219,4.19025488,90.78,90.73,16.17912431]
[1772666615507,4.19025488,90.78,90.687,44.10734739]
[1772666615508,4.19025488,90.75,90.711,0.5]
[1772666616501,8.99536525,90.75,90.711,0.5]
[1772666616706,11.01940517,90.749,90.713,0.5]
[1772666617205,11.01940517,90.749,90.687,0.5]
[1772666617206,8.99536525,90.74,90.687,0.5]
[1772666617507,8.99536525,90.73,90.687,0.5]
[1772666617909,0.28432314,90.748,90.661,0.5]
[1772666618109,8.99536525,90.71,90.661,0.5]
[1772666618313,0.28432314,90.748,90.661,0.5]
[1772666618314,8.99536525,90.72,90.661,0.5]
[1772666618495,0.28432314,90.748,90.663,0.5]
[1772666618496,8.99536525,90.73,90.663,0.5]
[1772666618694,11.0242644,90.709,90.664,11.52973616]
[1772666618887,0.28432314,90.708,90.642,0.5]
[1772666619088,8.99536525,90.67,90.612,0.5]
[1772666619392,8.99536525,90.65,90.612,0.5]
[1772666619611,225.99742029,90.709,90.605,5.05122354]
[1772666619612,8.99536525,90.64,90.605,5.05122354]
[1772666619810,8.99536525,90.63,90.605,5.05122354]
[1772666619994,8.99536525,90.63,90.581,0.5]
[1772666620313,8.99536525,90.62,90.59,1e-08]
[1772666620494,8.99536525,90.61,90.59,1e-08]
[1772666620893,8.99536525,90.6,90.58,0.1]
[1772666621116,11.03643125,90.609,90.58,0.1]
[1772666621117,8.99536525,90.59,90.58,0.1]
[1772666621407,8.99536525,90.59,90.561,1e-08]
[1772666621626,8.99536525,90.58,90.561,1e-08]
[1772666621910,0.28432314,90.599,90.563,0.5]
[1772666622114,0.28432314,90.589,90.561,1e-08]
[1772666622311,38.62750939,90.609,90.561,0.50000001]
[1772666622609,8.99536525,90.6,90.561,0.50000001]
[1772666622818,8.99536525,90.59,90.561,1e-08]
[1772666623527,8.99536525,90.57,90.561,1e-08]
[1772666623908,11.03655306,90.608,90.561,1e-08]
[1772666624119,38.60620566,90.659,90.561,1e-08]
[1772666624310,8.99536525,90.65,90.561,1e-08]
[1772666624519,11.03034447,90.659,90.575,0.5]
[1772666624729,11.03034447,90.659,90.585,0.5]
[1772666625023,44.10195467,90.699,90.576,0.28432314]
[1772666625024,8.99536525,90.68,90.593,0.5]
[1772666625241,38.58279867,90.714,90.597,0.5]
[1772666625407,126.77205279,90.714,90.615,0.5]
[1772666625723,8.99536525,90.71,90.625,0.5]
[1772666625903,8.99536525,90.7,90.625,0.5]
[1772666626309,38.58279867,90.714,90.625,0.5]
[1772666626310,0.28432314,90.709,90.625,0.5]
[1772666626613,8.99536525,90.71,90.625,0.5]
[1772666626817,8.99536525,90.71,90.627,0.5]
[1772666626818,0.14216157,90.707,90.627,0.5]
[1772666627011,0.28432314,90.707,90.627,0.5]
[1772666627209,0.28432314,90.707,90.626,137.9295125]
[1772666627210,8.99536525,90.74,90.641,0.5]
[1772666627429,27.5505828,90.743,90.645,0.5]
[1772666627624,8.99536525,90.73,90.645,0.5]
[1772666627826,8.99536525,90.71,90.645,0.5]
[1772666628016,0.28432314,90.699,90.627,0.5]
[1772666628211,0.28432314,90.689,90.627,0.5]
[1772666629010,11.02681721,90.688,90.629,0.5]
[1772666629529,11.02681721,90.688,90.628,38.61941121]
[1772666629530,8.99536525,90.71,90.631,0.5]
[1772666629832,11.02141818,90.733,90.655,0.5]
[1772666630228,8.99536525,90.72,90.655,0.5]
[1772666630428,0.28432314,90.709,90.655,0.5]
[1772666630630,0.14216157,90.719,90.655,0.5]
[1772666630934,0.28432314,90.719,90.655,0.5]
[1772666631121,11.16521076,90.719,90.657,0.5]
[1772666631326,0.14216157,90.709,90.657,0.5]
[1772666631531,0.28432314,90.709,90.657,0.5]
[1772666632028,11.02304919,90.719,90.657,0.5]
[1772666632232,11.02061957,90.739,90.657,0.5]
[1772666632416,0.28432314,90.738,90.657,0.5]
[1772666632927,11.01918259,90.751,90.665,0.5]
[1772666633120,11.01819103,90.759,90.677,0.5]
[1772666633323,0.28432314,90.749,90.677,0.5]
[1772666633725,27.54699517,90.754,90.677,0.5]
[1772666633906,11.01819103,90.759,90.677,0.5]
[1772666634109,38.56366861,90.759,90.677,0.5]
[1772666634420,0.28432314,90.749,90.677,0.5]
[1772666635209,38.85224124,90.749,90.679,0.5]
[1772666635410,0.28432314,90.739,90.679,0.5]
[1772666637314,0.28432314,90.737,90.681,0.5]
[1772666637629,8.99536525,90.75,90.681,0.5]
[1772666637829,27.53940889,90.779,90.689,0.5]
[1772666638129,27.53940889,90.779,90.695,0.5]
[1772666638537,0.28432314,90.778,90.695,0.5]
[1772666638834,27.53940889,90.779,90.695,0.5]
[1772666639028,0.14216157,90.769,90.695,0.5]
[1772666639234,0.14216157,90.769,90.697,0.5]
[1772666639437,0.14216157,90.779,90.697,0.5]
[1772666639626,0.28432314,90.779,90.697,0.5]
[1772666639825,0.28432314,90.769,90.697,0.5]
[1772666640030,8.99536525,90.76,90.697,0.5]
[1772666640232,0.28432314,90.769,90.697,0.5]
[1772666640939,8.99536525,90.75,90.697,0.5]
[1772666641132,3.69383402,90.777,90.697,0.5]
[1772666641334,3.69383402,90.777,90.681,44.11061305]
[1772666641335,8.99536525,90.76,90.699,0.5]
[1772666641637,0.28432314,90.769,90.699,0.5]
[1772666642020,0.28432314,90.769,90.661,44.12012127]
[1772666642021,0.28432314,90.749,90.693,11.02616051]
[1772666642320,0.28432314,90.739,90.69,11.02657404]
[1772666642519,0.28432314,90.739,90.689,0.5]
[1772666642741,0.28432314,90.739,90.69,11.02657404]
[1772666642944,0.28432314,90.739,90.69,11.52657404]
[1772666643439,0.28432314,90.737,90.69,11.52657404]
[1772666643643,38.57259361,90.738,90.691,0.5]
[1772666643644,11.02074103,90.738,90.691,0.5]
[1772666643867,0.14216157,90.766,90.691,0.5]
[1772666644149,0.28432314,90.766,90.691,0.5]
[1772666644350,0.28432314,90.759,90.691,0.5]
[1772666644543,8.99536525,90.74,90.691,0.5]
[1772666644752,0.28432314,90.739,90.691,0.5]
[1772666645331,0.28432314,90.737,90.692,11.02633087]
[1772666645744,0.28432314,90.737,90.693,0.5]
[1772666647336,8.99536525,90.73,90.693,0.5]
[1772666647532,0.28432314,90.735,90.693,0.5]
[1772666647738,8.99536525,90.73,90.684,11.02720389]
[1772666648044,0.28432314,90.735,90.685,0.5]
[1772666649139,0.28432314,90.729,90.685,0.5]
[1772666649536,0.28432314,90.719,90.674,0.21863]
[1772666649735,8.99536525,90.71,90.674,0.21863]
[1772666649935,0.28432314,90.719,90.674,11.24703033]
[1772666650130,8.99536525,90.71,90.674,0.21863]
[1772666650543,0.28432314,90.709,90.674,0.21863]
[1772666650857,8.99536525,90.72,90.675,11.52839812]
[1772666651154,8.99536525,90.71,90.675,11.02839812]
[1772666651345,0.28432314,90.719,90.675,11.02839812]
[1772666651749,0.28432314,90.717,90.675,11.02839812]
[1772666651950,0.28432314,90.717,90.675,11.52839812]
[1772666653353,8.99536525,90.71,90.675,11.52839812]
[1772666653557,8.49536525,90.71,90.675,11.52839812]
[1772666653761,8.99536525,90.69,90.674,1e-08]
[1772666654550,38.58492541,90.709,90.674,1e-08]
[1772666654551,0.28432314,90.699,90.674,1e-08]
[1772666654760,0.28432314,90.708,90.674,0.50000001]
[1772666654944,11.0242644,90.709,90.676,0.5]
[1772666655952,8.99536525,90.74,90.678,0.5]
[1772666656130,0.28432314,90.739,90.678,0.5]
[1772666656336,8.99536525,90.73,90.678,0.5]
[1772666656878,0.28432314,90.739,90.678,0.5]
[1772666657429,8.99536525,90.74,90.678,0.5]
[1772666657634,38.57216851,90.739,90.68,0.5]
[1772666657840,8.99536525,90.73,90.68,0.5]
[1772666658858,0.28432314,90.738,90.68,0.5]
[1772666659172,87.41752734,90.807,90.686,0.5]
[1772666659460,87.41752734,90.807,90.696,0.5]
[1772666659461,8.99536525,90.78,90.696,0.5]
[1772666659637,11.01576355,90.779,90.706,0.5]
[1772666661256,11.01455022,90.789,90.712,0.5]
[1772666661460,11.01455022,90.789,90.716,0.5]
[1772666662262,38.55092577,90.789,90.716,0.5]
[1772666663344,0.28432314,90.799,90.718,0.5]
[1772666663573,8.99536525,90.79,90.718,0.5]
[1772666663854,0.28432314,90.779,90.718,0.5]
[1772666664736,8.99536525,90.77,90.718,0.5]
[1772666665557,8.99536525,90.77,90.717,38.58152275]
[1772666665558,38.55942006,90.769,90.72,0.5]
[1772666666264,8.99536525,90.76,90.72,0.5]
[1772666666442,8.99536525,90.76,90.719,11.02304919]
[1772666666759,8.99536525,90.76,90.72,0.5]
[1772666667243,0.28432314,90.768,90.72,0.5]
[1772666667640,11.01721991,90.767,90.722,0.5]
[1772666670360,8.99536525,90.77,90.724,0.5]
[1772666670972,8.99536525,90.76,90.723,11.02256318]
[1772666671470,8.99536525,90.76,90.716,0.5]
[1772666672670,11.01819103,90.759,90.718,0.5]
[1772666674767,11.01576355,90.779,90.72,0.5]
[1772666674974,27.54153263,90.772,90.72,0.5]
[1772666675982,11.01212434,90.809,90.72,0.5]
[1772666676154,8.99536525,90.8,90.72,0.5]
[1772666676580,0.28432314,90.799,90.72,0.5]
[1772666676766,38.54668002,90.799,90.722,0.5]
[1772666676972,0.28432314,90.798,90.722,0.5]
[1772666677173,8.98657307,90.79,90.722,0.5]
[1772666677480,8.98657307,90.77,90.722,0.5]
[1772666678065,0.28432314,90.779,90.722,0.5]
[1772666679169,0.28432314,90.777,90.724,0.5]
[1772666679377,11.0158849,90.778,90.724,0.5]
[1772666680374,8.98657307,90.8,90.724,0.5]
[1772666680574,8.98657307,90.79,90.726,0.5]
[1772666681379,38.83100316,90.799,90.726,0.5]
[1772666681772,8.98657307,90.79,90.726,0.5]
[1772666682695,38.55092577,90.789,90.727,38.57727027]
[1772666682994,38.55092577,90.789,90.728,0.5]
[1772666684398,11.01455022,90.789,90.728,0.5]
[1772666684803,11.01455022,90.789,90.714,44.0944278]
[1772666684804,11.01345844,90.798,90.73,0.5]
[1772666685285,11.29656875,90.808,90.73,0.5]
[1772666685484,11.29656875,90.808,90.729,82.66375689]
[1772666685485,11.01224561,90.808,90.736,0.5]
[1772666685895,8.98657307,90.83,90.746,0.5]
[1772666686086,8.98657307,90.83,90.756,0.5]
[1772666686286,8.98657307,90.82,90.756,0.5]
[1772666687005,11.01091181,90.819,90.758,0.5]
[1772666687591,11.00969954,90.829,90.758,0.5]
[1772666688108,38.5339484,90.829,90.758,0.5]
[1772666688691,27.52144905,90.839,90.759,0.28432314]
[1772666688908,27.52144905,90.839,90.766,0.5]
[1772666689796,11.00860873,90.838,90.766,0.5]
[1772666690106,11.00860873,90.838,90.768,0.5]
[1772666691006,8.98657307,90.83,90.768,0.5]
[1772666691192,11.00860873,90.838,90.768,0.5]
[1772666691794,8.98657307,90.83,90.768,0.5]
[1772666692196,8.98657307,90.83,90.758,44.07315099]
[1772666692197,0.28432314,90.835,90.77,0.5]
[1772666692795,11.00885111,90.836,90.77,0.5]
[1772666694010,11.00885111,90.836,90.772,0.5]
[1772666694311,11.20841243,90.84,90.772,0.5]
[1772666694507,20.1949855,90.84,90.772,0.5]
[1772666695896,20.1949855,90.84,90.774,0.5]
[1772666696814,11.20841243,90.84,90.774,0.5]
[1772666697394,11.20841243,90.84,90.777,0.5]
[1772666697610,0.2,90.84,90.777,0.5]
[1772666697816,0.2,90.84,90.779,0.5]
[1772666698012,0.2,90.85,90.785,0.5]
[1772666698697,11.2072662,90.85,90.785,0.5]
[1772666700316,11.2072662,90.85,90.776,3.97815716]
[1772666700317,1e-08,90.85,90.791,0.5]
[1772666700501,1e-08,90.85,90.789,3.69383402]
[1772666700502,11.20363701,90.88,90.808,0.5]
[1772666700895,8.98657307,90.87,90.808,0.5]
[1772666701715,0.28432314,90.879,90.808,0.5]
[1772666701914,0.28432314,90.869,90.808,0.5]
[1772666702609,8.98657307,90.86,90.81,0.5]
[1772666703816,13.9,90.86,90.81,0.5]
[1772666705501,38.52122519,90.859,90.812,0.5]
[1772666706399,11.00606434,90.859,90.812,0.5]
[1772666706600,11.00497424,90.868,90.812,0.5]
[1772666707617,8.98657307,90.87,90.814,0.5]
[1772666708119,8.98657307,90.86,90.814,0.5]
[1772666709212,22.88657307,90.86,90.814,0.5]
[1772666709524,9.27089621,90.87,90.814,0.5]
[1772666710023,0.28432314,90.868,90.816,0.5]
[1772666710734,11.00485314,90.869,90.816,0.5]
[1772666710933,11.28796534,90.879,90.816,0.5]
[1772666711729,38.79707085,90.879,90.816,0.5]
[1772666712509,38.79707085,90.879,90.818,0.5]
[1772666714437,0.28432314,90.859,90.818,0.5]
[1772666715228,27.50910551,90.879,90.82,0.5]
[1772666715435,11.28808642,90.878,90.82,0.5]
[1772666717630,38.79749463,90.878,90.822,0.5]
[1772666719739,38.79749463,90.878,90.824,0.5]
[1772666720232,0.28432314,90.859,90.823,11.01042687]